[Event "GrandPrix_29.05"]
[Site "Chess.com"]
[Date "2020.05.29"]
[Round "6"]
[White "PresidenteMNE"]
[Black "Igor_Lysyj"]
[Result "0-1"]
[WhiteElo "2448"]
[BlackElo "2526"]
[TimeControl "600+2"]
[EndTime "12:02:49 PDT"]
[Termination "Igor_Lysyj won by resignation"]

1. d4 {[%clk 0:10:01.9]} 1... Nf6 {[%clk 0:09:59.1]} 2. Bg5 {[%clk 0:10:02.7]}
2... d5 {[%clk 0:09:58.5]} 3. Bxf6 {[%clk 0:10:03.2]} 3... exf6 {[%clk
0:09:59.1]} 4. e3 {[%clk 0:10:04.4]} 4... Bd6 {[%clk 0:09:56.6]} 5. g3 {[%clk
0:10:05]} 5... O-O {[%clk 0:09:54.6]} 6. Bg2 {[%clk 0:10:05.7]} 6... c6 {[%clk
0:09:54.2]} 7. Ne2 {[%clk 0:10:06.7]} 7... Nd7 {[%clk 0:09:52.4]} 8. O-O {[%clk
0:10:03.6]} 8... Nb6 {[%clk 0:09:52.6]} 9. b3 {[%clk 0:10:02.6]} 9... Re8 {[%clk
0:09:43.7]} 10. Nd2 {[%clk 0:10:01.2]} 10... Bf5 {[%clk 0:09:43.8]} 11. Nf4
{[%clk 0:09:38.6]} 11... Bb4 {[%clk 0:09:34.8]} 12. a3 {[%clk 0:09:17.8]} 12...
Bd6 {[%clk 0:09:21.2]} 13. Re1 {[%clk 0:08:37.8]} 13... a5 {[%clk 0:08:32.8]}
14. Qc1 {[%clk 0:08:29.6]} 14... Rc8 {[%clk 0:08:00.6]} 15. Qb2 {[%clk
0:08:11.8]} 15... c5 {[%clk 0:07:03.5]} 16. dxc5 {[%clk 0:07:40.6]} 16... Be5
{[%clk 0:06:25]} 17. c3 {[%clk 0:07:41.6]} 17... Rxc5 {[%clk 0:06:23.6]} 18.
Rac1 {[%clk 0:07:35.3]} 18... Qc7 {[%clk 0:06:09]} 19. Ne2 {[%clk 0:07:07.4]}
19... Rc8 {[%clk 0:06:08.8]} 20. Nd4 {[%clk 0:06:54.6]} 20... Bd7 {[%clk
0:05:58.3]} 21. Nb1 {[%clk 0:06:35.8]} 21... Qd8 {[%clk 0:05:45.1]} 22. Qe2
{[%clk 0:06:06]} 22... f5 {[%clk 0:05:39.2]} 23. Red1 {[%clk 0:05:35.3]} 23...
Qf8 {[%clk 0:05:31.1]} 24. a4 {[%clk 0:05:16.4]} 24... g6 {[%clk 0:05:28.1]} 25.
Qe1 {[%clk 0:04:59.7]} 25... Bf6 {[%clk 0:05:24.2]} 26. Na3 {[%clk 0:04:45.6]}
26... h5 {[%clk 0:05:17.2]} 27. h4 {[%clk 0:04:43.1]} 27... Qe7 {[%clk 0:05:09]}
28. Nab5 {[%clk 0:04:39.1]} 28... Be5 {[%clk 0:04:51.8]} 29. c4 {[%clk
0:04:24.7]} 29... Bxb5 {[%clk 0:04:28.4]} 30. Nxb5 {[%clk 0:04:01.3]} 30... dxc4
{[%clk 0:04:27.8]} 31. Qxa5 {[%clk 0:04:00.3]} 31... cxb3 {[%clk 0:04:19]} 32.
Rxc5 {[%clk 0:03:46.1]} 32... Qxc5 {[%clk 0:04:18.8]} 33. Bxb7 {[%clk
0:03:46.2]} 33... Rb8 {[%clk 0:04:05.4]} 34. Qa7 {[%clk 0:02:34.6]} 34... b2
{[%clk 0:03:51.1]} 35. Kg2 {[%clk 0:02:21.8]} 35... Qc2 {[%clk 0:03:16.4]} 36.
Nd6 {[%clk 0:02:18]} 36... Bxd6 {[%clk 0:02:57.5]} 37. Rxd6 {[%clk 0:02:17.3]}
37... Rxb7 {[%clk 0:02:06.4]} 38. Qxb7 {[%clk 0:02:17.7]} 38... b1=Q {[%clk
0:02:05.9]} 39. Rxb6 {[%clk 0:02:18.6]} 39... Qe4+ {[%clk 0:01:40.6]} 40. Qxe4
{[%clk 0:02:18.6]} 40... Qxe4+ {[%clk 0:01:41.1]} 41. Kg1 {[%clk 0:02:16.2]}
41... Qxa4 {[%clk 0:01:41.7]} 42. Rd6 {[%clk 0:02:13.6]} 42... Kf8 {[%clk
0:01:39]} 43. Rd4 {[%clk 0:02:13.5]} 43... Qc2 {[%clk 0:01:36.5]} 44. Kg2 {[%clk
0:02:13.4]} 44... Ke7 {[%clk 0:01:36.5]} 45. Rf4 {[%clk 0:02:12.3]} 45... Qc3
{[%clk 0:01:31.3]} 46. Rd4 {[%clk 0:02:09.4]} 46... Ke6 {[%clk 0:01:31.6]} 47.
Kf3 {[%clk 0:02:07]} 47... f6 {[%clk 0:01:28.1]} 48. Rd8 {[%clk 0:01:49.5]}
48... Qc6+ {[%clk 0:01:26.6]} 49. Ke2 {[%clk 0:01:47.5]} 49... g5 {[%clk
0:01:26]} 50. hxg5 {[%clk 0:01:35.6]} 50... fxg5 {[%clk 0:01:23.7]} 51. Rd4
{[%clk 0:01:23.4]} 51... Qc1 {[%clk 0:01:16.4]} 52. Rd1 {[%clk 0:01:20.5]} 52...
Qc4+ {[%clk 0:01:14.5]} 53. Ke1 {[%clk 0:01:18.3]} 53... h4 {[%clk 0:01:06.8]}
54. gxh4 {[%clk 0:01:19.3]} 54... gxh4 {[%clk 0:01:07.4]} 55. Rd4 {[%clk
0:01:09.8]} 55... Qc1+ {[%clk 0:00:59.8]} 56. Ke2 {[%clk 0:01:10.1]} 56... Qh1
{[%clk 0:00:53.9]} 57. Ra4 {[%clk 0:01:04.9]} 57... h3 {[%clk 0:00:52.5]} 58.
Ra6+ {[%clk 0:01:03.8]} 58... Kd7 {[%clk 0:00:53]} 59. Ra7+ {[%clk 0:00:51.7]}
59... Kc6 {[%clk 0:00:53.3]} 60. Ra6+ {[%clk 0:00:42.7]} 60... Kb7 {[%clk
0:00:54]} 61. Rf6 {[%clk 0:00:40.6]} 61... h2 {[%clk 0:00:53.7]} 62. Rxf5 {[%clk
0:00:40.2]} 62... Qg2 {[%clk 0:00:53.4]} 0-1

[Event "GrandPrix_29.05"]
[Site "Chess.com"]
[Date "2020.05.29"]
[Round "6"]
[White "RogerFederer13"]
[Black "LiamVrolijk"]
[Result "0-1"]
[WhiteElo "2117"]
[BlackElo "2389"]
[TimeControl "600+2"]
[EndTime "12:02:50 PDT"]
[Termination "LiamVrolijk won by resignation"]

1. e4 {[%clk 0:10:01.9]} 1... e5 {[%clk 0:10:00.6]} 2. Nf3 {[%clk 0:10:02.8]}
2... Nc6 {[%clk 0:10:01.9]} 3. Bb5 {[%clk 0:10:03.3]} 3... Nf6 {[%clk
0:09:59.2]} 4. d3 {[%clk 0:10:03.9]} 4... Bc5 {[%clk 0:09:59]} 5. Bxc6 {[%clk
0:09:54.5]} 5... dxc6 {[%clk 0:10:00.9]} 6. h3 {[%clk 0:09:44.8]} 6... Nd7
{[%clk 0:09:57.6]} 7. Nc3 {[%clk 0:09:28.9]} 7... f6 {[%clk 0:09:46.1]} 8. Be3
{[%clk 0:09:02.3]} 8... Bd6 {[%clk 0:09:40.1]} 9. Nd2 {[%clk 0:08:53.6]} 9...
Nf8 {[%clk 0:09:31.5]} 10. O-O {[%clk 0:08:30.7]} 10... Ne6 {[%clk 0:09:17.8]}
11. Ne2 {[%clk 0:07:48.9]} 11... O-O {[%clk 0:09:16]} 12. Nc4 {[%clk 0:07:48.3]}
12... b6 {[%clk 0:08:54]} 13. f4 {[%clk 0:06:06.3]} 13... exf4 {[%clk
0:08:31.4]} 14. Nxf4 {[%clk 0:06:08.2]} 14... Nxf4 {[%clk 0:08:18.7]} 15. Bxf4
{[%clk 0:06:10.1]} 15... Bxf4 {[%clk 0:08:05]} 16. Rxf4 {[%clk 0:06:12]} 16...
Be6 {[%clk 0:07:49.6]} 17. Ne3 {[%clk 0:05:47.9]} 17... Qd4 {[%clk 0:07:44.5]}
18. Qc1 {[%clk 0:05:48.1]} 18... f5 {[%clk 0:07:08.9]} 19. Kh1 {[%clk
0:05:30.1]} 19... fxe4 {[%clk 0:06:00.2]} 20. Rxe4 {[%clk 0:05:32]} 20... Qd7
{[%clk 0:06:01]} 21. Qe1 {[%clk 0:04:07]} 21... Rf6 {[%clk 0:05:21.9]} 22. Qg3
{[%clk 0:02:16.3]} 22... Rg6 {[%clk 0:05:05]} 23. Qe5 {[%clk 0:01:23.1]} 23...
Rf8 {[%clk 0:04:15.1]} 24. Re1 {[%clk 0:01:02.5]} 24... h6 {[%clk 0:02:15.6]}
25. Rf4 {[%clk 0:00:57.6]} 25... Re8 {[%clk 0:01:57.4]} 26. Ng4 {[%clk
0:00:34.6]} 26... Kh7 {[%clk 0:01:23.2]} 27. Rfe4 {[%clk 0:00:26.2]} 27... Rf8
{[%clk 0:01:13.6]} 28. Ne3 {[%clk 0:00:22.1]} 28... a5 {[%clk 0:00:55.2]} 29.
Rf4 {[%clk 0:00:21.2]} 29... Re8 {[%clk 0:00:22.7]} 30. Re4 {[%clk 0:00:15.2]}
30... Bf7 {[%clk 0:00:17.1]} 31. Qf5 {[%clk 0:00:16.3]} 31... Qxf5 {[%clk
0:00:15.9]} 32. Nxf5 {[%clk 0:00:18.2]} 32... Rxe4 {[%clk 0:00:15.7]} 33. Rxe4
{[%clk 0:00:15.8]} 33... Bd5 {[%clk 0:00:17.1]} 34. Re2 {[%clk 0:00:15.7]} 34...
Rf6 {[%clk 0:00:17.7]} 35. Ne3 {[%clk 0:00:15.6]} 35... Bxa2 {[%clk 0:00:14.7]}
36. b3 {[%clk 0:00:16.9]} 36... Rf4 {[%clk 0:00:12.5]} 37. g3 {[%clk 0:00:14.2]}
37... Rd4 {[%clk 0:00:12.5]} 38. Nd1 {[%clk 0:00:09.5]} 38... a4 {[%clk
0:00:12.7]} 39. c3 {[%clk 0:00:05.7]} 39... Rxd3 {[%clk 0:00:13]} 40. Nf2 {[%clk
0:00:07.3]} 40... Rxc3 {[%clk 0:00:14.2]} 41. Rxa2 {[%clk 0:00:08.9]} 41... axb3
{[%clk 0:00:15.2]} 42. Ra1 {[%clk 0:00:07]} 42... b2 {[%clk 0:00:14.9]} 0-1

[Event "GrandPrix_29.05"]
[Site "Chess.com"]
[Date "2020.05.29"]
[Round "6"]
[White "Vuk2000"]
[Black "caspiwins"]
[Result "1-0"]
[WhiteElo "2301"]
[BlackElo "2258"]
[TimeControl "600+2"]
[EndTime "12:02:52 PDT"]
[Termination "Vuk2000 won by checkmate"]

1. d4 {[%clk 0:10:01.9]} 1... f5 {[%clk 0:09:48.8]} 2. Nf3 {[%clk 0:10:01.9]}
2... Nf6 {[%clk 0:09:48]} 3. c4 {[%clk 0:10:02.5]} 3... g6 {[%clk 0:09:48.6]} 4.
g3 {[%clk 0:10:03.3]} 4... Bg7 {[%clk 0:09:49.4]} 5. Bg2 {[%clk 0:10:04.3]} 5...
O-O {[%clk 0:09:51]} 6. O-O {[%clk 0:10:00.4]} 6... d6 {[%clk 0:09:52.5]} 7. b4
{[%clk 0:09:43.5]} 7... e5 {[%clk 0:09:51.7]} 8. dxe5 {[%clk 0:09:41.4]} 8...
dxe5 {[%clk 0:09:52.2]} 9. Bb2 {[%clk 0:09:34.8]} 9... e4 {[%clk 0:09:50]} 10.
Nd4 {[%clk 0:09:35.4]} 10... a5 {[%clk 0:09:50.6]} 11. a3 {[%clk 0:09:23.4]}
11... axb4 {[%clk 0:09:50.2]} 12. axb4 {[%clk 0:09:23.9]} 12... Rxa1 {[%clk
0:09:52.1]} 13. Bxa1 {[%clk 0:09:25.7]} 13... Na6 {[%clk 0:07:54]} 14. Bc3
{[%clk 0:08:33.2]} 14... c5 {[%clk 0:07:49.2]} 15. bxc5 {[%clk 0:08:16.4]} 15...
Nxc5 {[%clk 0:07:51.1]} 16. Bb4 {[%clk 0:08:17.4]} 16... b6 {[%clk 0:06:46.8]}
17. Nc3 {[%clk 0:08:13.4]} 17... Bb7 {[%clk 0:06:29.5]} 18. Ncb5 {[%clk
0:06:31.2]} 18... Qe7 {[%clk 0:06:04.2]} 19. e3 {[%clk 0:06:24.4]} 19... Ng4
{[%clk 0:05:57.6]} 20. Nb3 {[%clk 0:04:56.1]} 20... Rd8 {[%clk 0:05:53.4]} 21.
Qc1 {[%clk 0:04:37.3]} 21... Ne5 {[%clk 0:05:53.9]} 22. Bxc5 {[%clk 0:04:20.9]}
22... bxc5 {[%clk 0:05:52.6]} 23. Qa3 {[%clk 0:04:16.5]} 23... Nd3 {[%clk
0:05:29.8]} 24. Qa5 {[%clk 0:03:52.7]} 24... Ra8 {[%clk 0:05:14.4]} 25. Qc7
{[%clk 0:03:48.7]} 25... Qxc7 {[%clk 0:04:57.8]} 26. Nxc7 {[%clk 0:03:50.6]}
26... Ra3 {[%clk 0:04:57.6]} 27. Rb1 {[%clk 0:03:46.8]} 27... Bc6 {[%clk
0:04:10.9]} 28. Ne6 {[%clk 0:02:47.4]} 28... Ra2 {[%clk 0:04:10.8]} 29. Nbxc5
{[%clk 0:02:38.5]} 29... Nb2 {[%clk 0:03:42.4]} 30. Nxg7 {[%clk 0:02:25.4]}
30... Kxg7 {[%clk 0:03:42.4]} 31. Ne6+ {[%clk 0:02:26.3]} 31... Kf6 {[%clk
0:03:41.5]} 32. Nd4 {[%clk 0:02:27.1]} 32... Bd7 {[%clk 0:03:22.4]} 33. c5
{[%clk 0:02:22.3]} 33... Ke5 {[%clk 0:03:21.8]} 34. c6 {[%clk 0:01:47.5]} 34...
Bc8 {[%clk 0:03:20.3]} 35. Bf1 {[%clk 0:01:42.8]} 35... Kd5 {[%clk 0:03:05.6]}
36. c7 {[%clk 0:01:16.8]} 36... Kc5 {[%clk 0:02:22.7]} 37. Nb3+ {[%clk
0:00:51.9]} 37... Kb6 {[%clk 0:02:19.6]} 38. Nc1 {[%clk 0:00:52.3]} 38... Ra3
{[%clk 0:02:13.1]} 39. Rxb2+ {[%clk 0:00:52.8]} 39... Kxc7 {[%clk 0:02:14.5]}
40. Nb3 {[%clk 0:00:52.2]} 40... Bd7 {[%clk 0:02:02.6]} 41. h4 {[%clk
0:00:48.8]} 41... Kd6 {[%clk 0:01:57.9]} 42. Nd4 {[%clk 0:00:42]} 42... Ra1
{[%clk 0:01:55.1]} 43. Kg2 {[%clk 0:00:42.3]} 43... Rc1 {[%clk 0:01:47.4]} 44.
Rb6+ {[%clk 0:00:41.8]} 44... Ke7 {[%clk 0:01:45.8]} 45. Rb7 {[%clk 0:00:42]}
45... Kd6 {[%clk 0:01:38.2]} 46. Bb5 {[%clk 0:00:40.9]} 46... Bxb5 {[%clk
0:01:39]} 47. Rxb5 {[%clk 0:00:39.5]} 47... Rc7 {[%clk 0:01:35.8]} 48. h5 {[%clk
0:00:38.8]} 48... Ke7 {[%clk 0:01:33.5]} 49. Rb6 {[%clk 0:00:38.8]} 49... Kf7
{[%clk 0:01:33.2]} 50. Ne6 {[%clk 0:00:39.7]} 50... Re7 {[%clk 0:01:32.2]} 51.
Nf4 {[%clk 0:00:32.4]} 51... g5 {[%clk 0:01:31.7]} 52. Nd5 {[%clk 0:00:32]}
52... Re5 {[%clk 0:01:32.2]} 53. Rf6+ {[%clk 0:00:28.5]} 53... Ke8 {[%clk
0:01:12.2]} 54. Nb6 {[%clk 0:00:21.7]} 54... Rb5 {[%clk 0:01:06.9]} 55. Rh6
{[%clk 0:00:21.9]} 55... Kf8 {[%clk 0:01:02.1]} 56. Nc4 {[%clk 0:00:22.3]} 56...
Kg7 {[%clk 0:01:01.8]} 57. Re6 {[%clk 0:00:22.7]} 57... Rc5 {[%clk 0:00:59.6]}
58. Nd6 {[%clk 0:00:22.3]} 58... Rd5 {[%clk 0:00:57.1]} 59. h6+ {[%clk
0:00:22.5]} 59... Kf8 {[%clk 0:00:55.3]} 60. Re8# {[%clk 0:00:24.4]} 1-0

[Event "GrandPrix_29.05"]
[Site "Chess.com"]
[Date "2020.05.29"]
[Round "6"]
[White "AvitalBor"]
[Black "Azatic"]
[Result "1-0"]
[WhiteElo "2604"]
[BlackElo "2533"]
[TimeControl "600+2"]
[EndTime "12:02:55 PDT"]
[Termination "AvitalBor won by checkmate"]

1. e4 {[%clk 0:10:01.9]} 1... c5 {[%clk 0:09:59.8]} 2. c3 {[%clk 0:10:03.1]}
2... d5 {[%clk 0:10:00]} 3. exd5 {[%clk 0:10:05]} 3... Qxd5 {[%clk 0:10:01.5]}
4. d4 {[%clk 0:10:06.7]} 4... Nf6 {[%clk 0:10:02.8]} 5. Nf3 {[%clk 0:10:07.6]}
5... e6 {[%clk 0:10:03.6]} 6. Be2 {[%clk 0:09:48.1]} 6... Nc6 {[%clk 0:10:03.3]}
7. Na3 {[%clk 0:09:48.7]} 7... Be7 {[%clk 0:09:07.5]} 8. Nb5 {[%clk 0:09:46.6]}
8... Qd8 {[%clk 0:09:08.3]} 9. dxc5 {[%clk 0:09:44.3]} 9... Bxc5 {[%clk
0:09:10.2]} 10. Qxd8+ {[%clk 0:09:40.5]} 10... Kxd8 {[%clk 0:09:12.1]} 11. Bf4
{[%clk 0:09:40.6]} 11... Nd5 {[%clk 0:09:04.5]} 12. Bg3 {[%clk 0:09:37.5]} 12...
a6 {[%clk 0:08:56.3]} 13. Nd6 {[%clk 0:09:38.4]} 13... Ke7 {[%clk 0:08:53.4]}
14. Ne4 {[%clk 0:09:37.6]} 14... Ba7 {[%clk 0:08:32.8]} 15. O-O-O {[%clk
0:09:31.6]} 15... Rd8 {[%clk 0:08:04.6]} 16. c4 {[%clk 0:08:56.4]} 16... Nf6
{[%clk 0:08:02.2]} 17. Nxf6 {[%clk 0:08:24.4]} 17... gxf6 {[%clk 0:07:51.7]} 18.
Rxd8 {[%clk 0:08:24.4]} 18... Nxd8 {[%clk 0:07:51.8]} 19. Rd1 {[%clk 0:08:24.7]}
19... Bb8 {[%clk 0:07:52.4]} 20. c5 {[%clk 0:08:21.8]} 20... Bxg3 {[%clk
0:07:50.6]} 21. hxg3 {[%clk 0:08:22.3]} 21... Bd7 {[%clk 0:07:47.7]} 22. Nd4
{[%clk 0:08:15.2]} 22... Rc8 {[%clk 0:07:37.5]} 23. b4 {[%clk 0:08:10]} 23... a5
{[%clk 0:07:19.5]} 24. a3 {[%clk 0:07:55.2]} 24... axb4 {[%clk 0:07:19.3]} 25.
axb4 {[%clk 0:07:56.4]} 25... b6 {[%clk 0:07:18.2]} 26. Ba6 {[%clk 0:07:22.1]}
26... Rc7 {[%clk 0:07:17.7]} 27. Nb3 {[%clk 0:07:19.8]} 27... Ba4 {[%clk
0:06:55.9]} 28. Kb2 {[%clk 0:07:17.7]} 28... bxc5 {[%clk 0:06:48.6]} 29. Rc1
{[%clk 0:07:08.7]} 29... Bxb3 {[%clk 0:04:20.2]} 30. Kxb3 {[%clk 0:07:10.6]}
30... Nc6 {[%clk 0:04:20.7]} 31. Rxc5 {[%clk 0:07:06.1]} 31... Kd6 {[%clk
0:04:10.9]} 32. g4 {[%clk 0:05:37.7]} 32... Ra7 {[%clk 0:03:56.9]} 33. Bd3
{[%clk 0:05:17.8]} 33... Ra1 {[%clk 0:03:09.8]} 34. Be4 {[%clk 0:04:15.8]} 34...
Nd4+ {[%clk 0:03:05.5]} 35. Kc4 {[%clk 0:04:07.3]} 35... e5 {[%clk 0:02:17.3]}
36. Rd5+ {[%clk 0:03:59.7]} 36... Ke6 {[%clk 0:02:08]} 37. Ra5 {[%clk
0:03:51.1]} 37... Rc1+ {[%clk 0:01:37.8]} 38. Kd3 {[%clk 0:03:51]} 38... Rd1+
{[%clk 0:01:35.8]} 39. Kc3 {[%clk 0:03:46.9]} 39... Rc1+ {[%clk 0:01:07.4]} 40.
Kb2 {[%clk 0:03:44.8]} 40... Rf1 {[%clk 0:01:04.3]} 41. f3 {[%clk 0:03:09.8]}
41... Rf2+ {[%clk 0:00:39.3]} 42. Kc3 {[%clk 0:03:08.9]} 42... h5 {[%clk
0:00:36.3]} 43. gxh5 {[%clk 0:02:51.7]} 43... f5 {[%clk 0:00:37.4]} 44. Ra6+
{[%clk 0:02:49]} 44... Kd7 {[%clk 0:00:33.9]} 45. Bd5 {[%clk 0:02:41.3]} 45...
Rxg2 {[%clk 0:00:20.2]} 46. h6 {[%clk 0:02:39]} 46... Nb5+ {[%clk 0:00:17.5]}
47. Kd3 {[%clk 0:02:12]} 47... Nc7 {[%clk 0:00:19.4]} 48. Ra2 {[%clk 0:01:26.6]}
48... Rg8 {[%clk 0:00:04]} 49. Bxf7 {[%clk 0:01:23.8]} 49... Rh8 {[%clk
0:00:05.2]} 50. Rh2 {[%clk 0:01:23.8]} 50... Ke7 {[%clk 0:00:03.7]} 51. Bc4
{[%clk 0:01:24.3]} 51... Ne8 {[%clk 0:00:04.8]} 52. b5 {[%clk 0:01:19.8]} 52...
Kd6 {[%clk 0:00:05.8]} 53. Kc3 {[%clk 0:01:07.3]} 53... Kc5 {[%clk 0:00:06.4]}
54. h7 {[%clk 0:01:01.2]} 54... Nf6 {[%clk 0:00:07]} 55. Rh6 {[%clk 0:00:56.8]}
55... Nxh7 {[%clk 0:00:02.7]} 56. Rc6# {[%clk 0:00:56.6]} 1-0

[Event "GrandPrix_29.05"]
[Site "Chess.com"]
[Date "2020.05.29"]
[Round "6"]
[White "sergoy"]
[Black "Keks2017"]
[Result "0-1"]
[WhiteElo "2302"]
[BlackElo "2378"]
[TimeControl "600+2"]
[EndTime "12:02:56 PDT"]
[Termination "Keks2017 won by checkmate"]

1. d4 {[%clk 0:10:01.3]} 1... d6 {[%clk 0:09:58.3]} 2. Nf3 {[%clk 0:10:01.6]}
2... Nf6 {[%clk 0:09:59]} 3. c4 {[%clk 0:10:02.8]} 3... Nbd7 {[%clk 0:09:58.8]}
4. Nc3 {[%clk 0:10:03.5]} 4... e5 {[%clk 0:09:59.4]} 5. g3 {[%clk 0:10:05]} 5...
g6 {[%clk 0:10:00]} 6. Bg2 {[%clk 0:10:06.2]} 6... Bg7 {[%clk 0:10:00.9]} 7. O-O
{[%clk 0:10:07.7]} 7... O-O {[%clk 0:10:01.6]} 8. e4 {[%clk 0:10:09.2]} 8...
exd4 {[%clk 0:10:01.9]} 9. Nxd4 {[%clk 0:10:11.1]} 9... a6 {[%clk 0:10:01]} 10.
h3 {[%clk 0:10:10.7]} 10... Re8 {[%clk 0:10:01.7]} 11. Re1 {[%clk 0:10:08.3]}
11... Rb8 {[%clk 0:10:02.4]} 12. Rb1 {[%clk 0:09:44.6]} 12... Ne5 {[%clk
0:09:50.7]} 13. b3 {[%clk 0:09:10.2]} 13... c5 {[%clk 0:09:14.2]} 14. Nde2
{[%clk 0:09:10.2]} 14... b5 {[%clk 0:09:06]} 15. cxb5 {[%clk 0:09:04.7]} 15...
axb5 {[%clk 0:09:05.9]} 16. f4 {[%clk 0:09:05.4]} 16... Ned7 {[%clk 0:09:06.3]}
17. b4 {[%clk 0:08:07]} 17... Bb7 {[%clk 0:08:01.6]} 18. bxc5 {[%clk 0:07:16.1]}
18... Nxc5 {[%clk 0:07:46.7]} 19. Rxb5 {[%clk 0:07:09.3]} 19... Nfxe4 {[%clk
0:07:38.1]} 20. Nxe4 {[%clk 0:07:05.2]} 20... Bxe4 {[%clk 0:07:32.6]} 21. Rxb8
{[%clk 0:04:41.1]} 21... Qxb8 {[%clk 0:07:31.5]} 22. Bxe4 {[%clk 0:04:42]} 22...
Nxe4 {[%clk 0:07:29]} 23. Be3 {[%clk 0:04:38.5]} 23... Qa8 {[%clk 0:05:34]} 24.
Qc2 {[%clk 0:04:05.8]} 24... h5 {[%clk 0:05:17.9]} 25. h4 {[%clk 0:03:55]} 25...
Ng5 {[%clk 0:04:52.5]} 26. hxg5 {[%clk 0:03:18.6]} 26... Rxe3 {[%clk 0:04:50.7]}
27. Rf1 {[%clk 0:03:15.9]} 27... Ra3 {[%clk 0:03:52]} 28. f5 {[%clk 0:03:05.5]}
28... Rxa2 {[%clk 0:03:47.1]} 29. Qc4 {[%clk 0:03:00.6]} 29... d5 {[%clk
0:03:07.6]} 30. Qd3 {[%clk 0:02:57.4]} 30... Ra3 {[%clk 0:01:37.3]} 31. Qc2
{[%clk 0:02:50.1]} 31... Qe8 {[%clk 0:01:29.9]} 32. fxg6 {[%clk 0:02:49.6]}
32... fxg6 {[%clk 0:01:30]} 33. Nf4 {[%clk 0:02:22.9]} 33... Rxg3+ {[%clk
0:01:23.4]} 34. Kh2 {[%clk 0:02:23.6]} 34... Rxg5 {[%clk 0:01:20.2]} 35. Rf3
{[%clk 0:01:51.8]} 35... Kh7 {[%clk 0:00:56.9]} 36. Qf2 {[%clk 0:01:34.9]} 36...
Rg4 {[%clk 0:00:40.9]} 37. Qa7 {[%clk 0:00:45.7]} 37... Qe5 {[%clk 0:00:35.5]}
38. Qf7 {[%clk 0:00:46.7]} 38... d4 {[%clk 0:00:20.8]} 39. Kh3 {[%clk
0:00:46.8]} 39... Qe4 {[%clk 0:00:16.8]} 40. Ne6 {[%clk 0:00:28.5]} 40... Rh4+
{[%clk 0:00:12.8]} 41. Kg2 {[%clk 0:00:29.4]} 41... Qg4+ {[%clk 0:00:13.1]} 42.
Kf1 {[%clk 0:00:28.1]} 42... Rh1+ {[%clk 0:00:13.2]} 43. Ke2 {[%clk 0:00:29.3]}
43... Qe4+ {[%clk 0:00:13.9]} 44. Kd2 {[%clk 0:00:27.3]} 44... Rh2+ {[%clk
0:00:14.3]} 45. Kd1 {[%clk 0:00:02.7]} 45... Qe2+ {[%clk 0:00:13.8]} 46. Kc1
{[%clk 0:00:02.3]} 46... Qc2# {[%clk 0:00:14.3]} 0-1

[Event "GrandPrix_29.05"]
[Site "Chess.com"]
[Date "2020.05.29"]
[Round "6"]
[White "Matibar"]
[Black "klimkoj"]
[Result "1-0"]
[WhiteElo "2384"]
[BlackElo "2117"]
[TimeControl "600+2"]
[EndTime "12:02:56 PDT"]
[Termination "Matibar won by resignation"]

1. e4 {[%clk 0:09:57.4]} 1... c5 {[%clk 0:10:00.5]} 2. Nf3 {[%clk 0:09:56.1]}
2... d6 {[%clk 0:10:00.9]} 3. d4 {[%clk 0:09:56.2]} 3... cxd4 {[%clk 0:10:00.6]}
4. Nxd4 {[%clk 0:09:58.1]} 4... Nf6 {[%clk 0:10:01.2]} 5. Nc3 {[%clk 0:09:59.8]}
5... a6 {[%clk 0:10:01.6]} 6. g3 {[%clk 0:10:01.2]} 6... e5 {[%clk 0:10:01.2]}
7. Nde2 {[%clk 0:10:01.5]} 7... Be7 {[%clk 0:10:01.6]} 8. Bg2 {[%clk 0:10:01]}
8... O-O {[%clk 0:10:02.4]} 9. O-O {[%clk 0:09:55.3]} 9... Qc7 {[%clk
0:10:02.6]} 10. a4 {[%clk 0:09:13.5]} 10... b6 {[%clk 0:09:56.8]} 11. h3 {[%clk
0:08:58.8]} 11... Nbd7 {[%clk 0:09:55.7]} 12. g4 {[%clk 0:08:57.9]} 12... Bb7
{[%clk 0:09:51.8]} 13. Ng3 {[%clk 0:08:55.9]} 13... Nc5 {[%clk 0:09:48.6]} 14.
g5 {[%clk 0:08:44.6]} 14... Ne8 {[%clk 0:09:41.5]} 15. Nd5 {[%clk 0:08:27]}
15... Bxd5 {[%clk 0:09:35.9]} 16. exd5 {[%clk 0:08:28.9]} 16... f5 {[%clk
0:09:28.2]} 17. f4 {[%clk 0:08:28.8]} 17... e4 {[%clk 0:08:08]} 18. h4 {[%clk
0:08:17.9]} 18... Rc8 {[%clk 0:08:07.3]} 19. Be3 {[%clk 0:08:17.9]} 19... Qb7
{[%clk 0:07:46.8]} 20. Rf2 {[%clk 0:07:58.4]} 20... Nc7 {[%clk 0:07:34.7]} 21.
Bf1 {[%clk 0:07:51.4]} 21... Kh8 {[%clk 0:07:10.6]} 22. Rd2 {[%clk 0:07:32.6]}
22... Nd7 {[%clk 0:06:44]} 23. c4 {[%clk 0:06:40.2]} 23... a5 {[%clk 0:06:25.4]}
24. Ne2 {[%clk 0:06:40.6]} 24... Nc5 {[%clk 0:06:07.9]} 25. Nd4 {[%clk 0:06:41]}
25... N7a6 {[%clk 0:06:07.1]} 26. Bh3 {[%clk 0:04:47.8]} 26... Qd7 {[%clk
0:06:01.3]} 27. h5 {[%clk 0:04:42.4]} 27... Nb4 {[%clk 0:05:54.2]} 28. Ra3
{[%clk 0:04:37.8]} 28... Nbd3 {[%clk 0:05:48.9]} 29. Raxd3 {[%clk 0:04:35.4]}
29... exd3 {[%clk 0:05:46]} 30. b3 {[%clk 0:04:36.5]} 30... Rce8 {[%clk
0:05:19.4]} 31. Rxd3 {[%clk 0:04:34.1]} 31... Bd8 {[%clk 0:04:54.6]} 32. Bf2
{[%clk 0:04:19.9]} 32... Re4 {[%clk 0:04:48.5]} 33. Rf3 {[%clk 0:04:16.2]} 33...
Qf7 {[%clk 0:04:31.8]} 34. h6 {[%clk 0:02:21.3]} 34... g6 {[%clk 0:04:07.3]} 35.
Nb5 {[%clk 0:02:11.1]} 35... Qd7 {[%clk 0:03:54.1]} 36. Bg2 {[%clk 0:02:09.1]}
36... Rfe8 {[%clk 0:03:49.2]} 37. Kh2 {[%clk 0:02:09.8]} 37... Kg8 {[%clk
0:03:29.9]} 38. Bf1 {[%clk 0:02:05.4]} 38... R4e7 {[%clk 0:02:33.5]} 39. Kg2
{[%clk 0:02:02.9]} 39... Ne4 {[%clk 0:02:29.4]} 40. Bd4 {[%clk 0:02:04]} 40...
Nxg5 {[%clk 0:02:04.3]} 41. fxg5 {[%clk 0:02:03.3]} 41... Re4 {[%clk 0:02:00.5]}
42. Bd3 {[%clk 0:01:15.6]} 42... Rg4+ {[%clk 0:01:53.3]} 43. Rg3 {[%clk
0:01:16.5]} 43... Rxg3+ {[%clk 0:01:51.2]} 44. Kxg3 {[%clk 0:01:17.8]} 44...
Bxg5 {[%clk 0:01:52.3]} 45. Qf3 {[%clk 0:00:57.3]} 45... Bxh6 {[%clk 0:01:38]}
46. Bxb6 {[%clk 0:00:58.4]} 46... Qe7 {[%clk 0:01:29.6]} 47. Bf2 {[%clk
0:00:59.1]} 47... Qe5+ {[%clk 0:01:22.2]} 48. Kg2 {[%clk 0:00:59.7]} 48... Bg7
{[%clk 0:01:13.9]} 49. c5 {[%clk 0:00:59.1]} 49... dxc5 {[%clk 0:01:09.1]} 50.
d6 {[%clk 0:01:00.4]} 50... Bf6 {[%clk 0:00:51.7]} 51. Bc4+ {[%clk 0:01:01.4]}
51... Kg7 {[%clk 0:00:51.8]} 52. Qd5 {[%clk 0:00:54.2]} 52... Rd8 {[%clk
0:00:35]} 53. Qxe5 {[%clk 0:00:47]} 53... Bxe5 {[%clk 0:00:35.1]} 54. Bxc5
{[%clk 0:00:48.9]} 54... g5 {[%clk 0:00:33.7]} 55. Bb6 {[%clk 0:00:48.2]} 55...
Rf8 {[%clk 0:00:31.4]} 56. d7 {[%clk 0:00:47.9]} 56... Bf6 {[%clk 0:00:32.2]}
57. Nd4 {[%clk 0:00:47.8]} 57... Bxd4 {[%clk 0:00:28.6]} 58. Bxd4+ {[%clk
0:00:48.3]} 58... Kg6 {[%clk 0:00:29.8]} 59. Bb6 {[%clk 0:00:49.4]} 59... f4
{[%clk 0:00:28.3]} 60. d8=Q {[%clk 0:00:46.6]} 60... Rxd8 {[%clk 0:00:28.9]} 61.
Bxd8 {[%clk 0:00:48.3]} 1-0